bitfinex/quotes_SOLUSD_20250508
["timestamp","ask_amount","ask_price","bid_price","bid_amount"]
[1746741476703,23.92,160.74,160.71,35.69739812]
[1746741476898,23.96,160.75,160.72,35.69739812]
[1746741477103,23.96,160.75,160.73,35.69739812]
[1746741477518,23.96,160.75,160.7,32.22266208]
[1746741477519,23.96,160.75,160.74,35.69739812]
[1746741478002,23.9,160.79,160.74,35.69739812]
[1746741478213,23.9,160.79,160.76,35.69739812]
[1746741478521,232.98,160.8,160.76,35.69739812]
[1746741478902,6.21935576,160.79,160.76,35.69739812]
[1746741479318,232.98,160.8,160.76,35.69739812]
[1746741479906,239.19900013,160.8,160.77,35.69739812]
[1746741480230,239.19900013,160.8,160.75,26.0]
[1746741480522,6.21900013,160.8,160.77,35.69739812]
[1746741481022,6.21900013,160.8,160.74,5.01362289]
[1746741481023,6.21900013,160.8,160.78,35.69739812]
[1746741483124,21.76265145,160.83,160.78,35.69739812]
[1746741484308,21.76265145,160.83,160.79,35.69739812]
[1746741490844,57.46004957,160.83,160.79,35.69739812]
[1746741491744,21.75875509,160.86,160.82,35.69739812]
[1746741491919,21.75875509,160.86,160.85,35.69739812]
[1746741492519,6.21581302,160.88,160.85,35.69739812]
[1746741492731,6.21581302,160.88,160.87,35.69739812]
[1746741492930,6.21504039,160.9,160.87,35.69739812]
[1746741493137,6.21504039,160.9,160.89,35.69739812]
[1746741493332,30.15471723,160.91,160.89,35.69739812]
[1746741493542,6.21471723,160.91,160.9,35.69739812]
[1746741493737,6.21349571,160.94,160.9,35.69739812]
[1746741493936,6.21349571,160.94,160.92,35.69739812]
[1746741494861,21.74723499,160.94,160.88,26.0]
[1746741495028,57.44463311,160.94,160.89,35.69739812]
[1746741495232,57.44463311,160.94,160.81,1.5891]
[1746741495233,54.34704698,160.93,160.81,1.5891]
[1746741495440,54.34704698,160.91,160.86,35.69739812]
[1746741495943,21.75264138,160.9,160.86,35.69739812]
[1746741496343,21.75264138,160.9,160.87,35.69739812]
[1746741497030,21.75264138,160.9,160.86,35.69739812]
[1746741499460,6.21504039,160.9,160.89,35.69739812]
[1746741499835,6.21426795,160.92,160.89,35.69739812]
[1746741500036,15.53502707,160.93,160.9,35.69739812]
[1746741500957,15.53502707,160.93,160.89,35.69739812]
[1746741502057,15.53502707,160.93,160.88,35.69739812]
[1746741502356,21.74890888,160.93,160.88,35.69739812]
[1746741502546,21.74890888,160.93,160.88,31.44095206]
[1746741503063,21.74890888,160.93,160.89,35.69739812]
[1746741503548,6.21388181,160.93,160.9,35.69739812]
[1746741504064,6.21388181,160.93,160.89,35.69739812]
[1746741504358,21.74858633,160.93,160.89,35.69739812]
[1746741504956,21.74858633,160.93,160.86,61.69739812]
[1746741504957,35.69739812,160.92,160.86,61.69739812]
[1746741505136,35.69739812,160.92,160.86,35.69739812]
[1746741505652,35.69739812,160.92,160.87,35.69739812]
[1746741506556,21.75128953,160.91,160.87,35.69739812]
[1746741508287,21.75128953,160.91,160.88,35.69739812]
[1746741508465,15.53663538,160.91,160.88,35.69739812]
[1746741510047,18.64964886,160.88,160.81,1.5891]
[1746741510357,21.75940316,160.85,160.81,37.28649812]
[1746741511234,21.75940316,160.85,160.82,35.69739812]
[1746741511435,21.75940316,160.85,160.84,35.69739812]
[1746741511637,6.21697233,160.85,160.84,35.69739812]
[1746741512154,6.2166441,160.86,160.84,35.69739812]
[1746741512352,6.2166441,160.86,160.85,35.69739812]
[1746741516544,6.2166441,160.86,160.82,26.0]
[1746741516545,6.2166441,160.86,160.83,26.0]
[1746741516751,6.2166441,160.86,160.82,35.69739812]
[1746741517139,35.69739812,160.84,160.77,1.5728]
[1746741517341,35.69739812,160.82,160.77,37.27019812]
[1746741518274,21.76481561,160.81,160.77,37.27019812]
[1746741519381,21.76481561,160.81,160.77,1.5728]
[1746741519544,21.76481561,160.81,160.77,37.27019812]
[1746741519754,21.76481561,160.81,160.76,35.69739812]
[1746741519755,57.46221373,160.81,160.76,35.69739812]
[1746741519964,57.46221373,160.81,160.75,35.69739812]
[1746741520172,35.69739812,160.8,160.73,1.5623]
[1746741520352,21.76752285,160.79,160.75,35.69739812]
[1746741520668,21.76752285,160.79,160.76,35.69739812]
[1746741521480,57.46492097,160.79,160.74,35.69739812]
[1746741522351,23.46,160.78,160.74,35.69739812]
[1746741522549,6.22006593,160.77,160.74,35.69739812]
[1746741522771,6.21890547,160.8,160.74,35.69739812]
[1746741522962,29.67890547,160.8,160.76,35.69739812]
[1746741524075,29.67890547,160.8,160.73,1.5623]
[1746741524276,29.67890547,160.8,160.77,35.69739812]
[1746741525282,29.67890547,160.8,160.78,35.69739812]
[1746741525783,29.67890547,160.8,160.77,35.69739812]
[1746741525957,29.67890547,160.8,160.78,35.69739812]
[1746741526159,29.67890547,160.8,160.79,35.69739812]
[1746741527901,23.66,160.81,160.79,35.69739812]
[1746741527902,29.87879507,160.81,160.79,35.69739812]
[1746741528076,29.87851874,160.81,160.8,35.69739812]
[1746741528389,23.66,160.81,160.8,35.69739812]
[1746741529194,29.87851874,160.81,160.79,35.69739812]
[1746741530499,29.87851874,160.81,160.73,83.8623]
[1746741530500,45.42481561,160.81,160.73,83.8623]
[1746741530822,45.42481561,160.81,160.77,35.69739812]
[1746741530977,81.12221373,160.81,160.76,35.69739812]
[1746741531176,45.42481561,160.81,160.77,35.69739812]
[1746741531483,29.87851874,160.81,160.73,27.5623]
[1746741531686,29.87851874,160.81,160.77,35.69739812]
[1746741531887,29.87851874,160.81,160.73,27.5623]
[1746741532075,29.87851874,160.81,160.77,35.69739812]
[1746741533000,29.87851874,160.81,160.73,33.78388152]
[1746741533001,23.66,160.81,160.8,35.69739812]
[1746741533496,23.66,160.81,160.76,26.0]
[1746741533700,23.66,160.81,160.8,35.69739812]
[1746741534291,29.87853198,160.81,160.76,26.0]
[1746741534489,45.42482885,160.81,160.76,35.69739812]
[1746741534694,81.12222697,160.81,160.76,35.69739812]
[1746741535084,45.42482885,160.81,160.76,35.69739812]
[1746741535282,45.42482885,160.81,160.77,35.69739812]
[1746741535781,45.42482885,160.81,160.76,35.69739812]
[1746741535984,45.42482885,160.81,160.74,26.0]
[1746741536290,81.12222697,160.81,160.75,35.69739812]
[1746741537501,81.12222697,160.81,160.76,35.69739812]
[1746741537892,29.87853198,160.81,160.77,35.69739812]
[1746741538092,29.87853198,160.81,160.78,35.69739812]
[1746741538504,29.87853198,160.81,160.74,26.0]
[1746741538800,29.87853198,160.81,160.77,35.69739812]
[1746741539807,23.66,160.81,160.79,35.69739812]
[1746741539983,23.66,160.81,160.8,35.69739812]
[1746741543411,29.87851874,160.81,160.8,35.69739812]
[1746741544012,29.87851874,160.81,160.79,35.69739812]
[1746741544185,29.87851874,160.81,160.75,26.0]
[1746741544534,29.87851874,160.81,160.78,35.69739812]
[1746741546207,29.87851874,160.81,160.77,35.69739812]
[1746741547624,45.42481561,160.81,160.77,35.69739812]
[1746741547793,35.69739812,160.8,160.75,35.69739812]
[1746741548293,54.34704698,160.79,160.73,37.25969812]
[1746741548499,35.69739812,160.78,160.73,35.69739812]
[1746741548700,23.22,160.77,160.73,35.69739812]
[1746741548902,23.22,160.77,160.72,35.69739812]
[1746741549100,23.22,160.77,160.73,35.69739812]
[1746741549794,6.22045284,160.76,160.74,35.69739812]
[1746741549999,6.22045284,160.76,160.72,26.0]
[1746741550313,6.22045284,160.76,160.74,35.69739812]
[1746741550932,29.4401054,160.77,160.74,35.69739812]
[1746741551222,29.4401054,160.77,160.75,35.69739812]
[1746741552311,35.69739812,160.81,160.75,35.69739812]
[1746741552620,23.18,160.8,160.78,35.69739812]
[1746741552802,23.18,160.8,160.79,35.69739812]
[1746741553215,23.18,160.8,160.77,1.6274]
[1746741553426,23.18,160.8,160.79,35.69739812]
[1746741553616,23.36,160.81,160.79,35.69739812]
[1746741553822,23.36,160.81,160.8,35.69739812]
[1746741554027,172.09739812,160.87,160.8,35.69739812]
[1746741554028,23.16,160.85,160.8,35.69739812]
[1746741554318,159.76,160.87,160.84,35.69739812]
[1746741554319,23.36,160.87,160.84,35.69739812]
[1746741554492,23.36,160.87,160.86,35.69739812]
[1746741554924,35.69739812,160.93,160.86,35.69739812]
[1746741554925,29.57388181,160.93,160.86,35.69739812]
[1746741555143,23.16,160.92,160.89,35.69739812]
[1746741555294,23.36,160.93,160.91,35.69739812]
[1746741555497,23.36,160.93,160.92,35.69739812]
[1746741556104,29.35237896,160.97,160.92,35.69739812]
[1746741556323,6.21237896,160.97,160.96,35.69739812]
[1746741556500,6.21237896,160.97,160.95,35.69739812]
[1746741557012,6.21203005,160.98,160.96,35.69739812]
[1746741558211,6.21203005,160.98,160.95,35.69739812]
[1746741559525,6.21203005,160.98,160.96,35.69739812]
[1746741560128,6.21203005,160.98,160.89,37.27140413]
[1746741560322,6.21203005,160.98,160.95,35.69739812]
[1746741564345,6.21203005,160.98,160.94,35.69739812]
[1746741565057,21.74190953,160.98,160.94,35.69739812]
[1746741565448,57.43930765,160.98,160.93,35.69739812]
[1746741565634,21.74190953,160.98,160.93,35.69739812]
[1746741565955,21.74190953,160.98,160.95,35.69739812]
[1746741567164,21.74190953,160.98,160.94,35.69739812]
[1746741568675,18.64964886,160.97,160.89,26.0]
[1746741568970,18.64964886,160.97,160.93,35.69739812]
[1746741569349,18.64964886,160.97,160.89,26.0]
[1746741569551,54.34704698,160.97,160.92,35.69739812]
[1746741570443,21.74453279,160.96,160.92,35.69739812]
[1746741570637,57.44193091,160.96,160.91,35.69739812]
[1746741570868,21.74453279,160.96,160.92,35.69739812]
[1746741572968,21.74453279,160.96,160.93,35.69739812]
[1746741575164,6.21272365,160.96,160.93,35.69739812]
[1746741575357,6.21272365,160.96,160.9,26.0]
[1746741575564,6.21272365,160.96,160.94,35.69739812]
[1746741576078,6.21272365,160.96,160.95,35.69739812]
[1746741576658,6.2123377,160.97,160.95,35.69739812]
[1746741577182,6.2123377,160.97,160.92,26.0]
[1746741577468,6.2123377,160.97,160.95,35.69739812]
[1746741577971,6.2123377,160.97,160.92,26.0]
[1746741578171,23.36,160.99,160.96,35.69739812]
[1746741578472,23.36,160.99,160.98,35.69739812]
[1746741578666,29.57156593,160.99,160.97,35.69739812]
[1746741579859,29.57156593,160.99,160.96,35.69739812]
[1746741580035,29.57156593,160.99,160.97,35.69739812]
[1746741580036,23.36,160.99,160.97,35.69739812]
[1746741580763,23.36,160.99,160.98,35.69739812]
[1746741581640,29.57161636,160.99,160.96,35.69739812]
[1746741581854,29.57161636,160.99,160.97,35.69739812]
[1746741582262,6.21161636,160.99,160.96,35.69739812]
[1746741582459,6.21161636,160.99,160.97,35.69739812]
[1746741583473,6.21079436,161.01,160.93,108.3]
[1746741583766,6.21079436,161.01,160.98,35.69739812]
[1746741584141,21.73778026,161.01,160.98,35.69739812]
[1746741585448,21.73778026,161.01,160.97,35.69739812]
[1746741585947,21.73778026,161.01,160.93,32.21373306]
[1746741586449,21.73778026,161.01,160.97,35.69739812]
[1746741587370,21.73778026,161.01,160.96,35.69739812]
[1746741587569,21.73778026,161.01,160.97,35.69739812]
[1746741589773,21.73778026,161.01,160.97,22.23174939]
[1746741591275,21.73778026,161.01,160.98,22.23174939]
[1746741591750,21.73778026,161.01,160.97,22.23174939]
[1746741592767,21.73778026,161.01,160.96,22.23174939]
[1746741593263,21.73778026,161.01,160.97,22.23174939]
[1746741594753,6.21079436,161.01,160.97,22.23174939]
[1746741594955,6.21079436,161.01,160.98,22.23174939]
[1746741595261,6.21079436,161.01,161.0,22.23174939]
[1746741595882,6.21002297,161.03,161.0,22.23174939]
[1746741596054,23.02,161.04,161.02,22.23174939]
[1746741596055,29.22977139,161.04,161.02,22.23174939]
[1746741596252,22.92464481,161.04,161.02,22.23174939]
[1746741596472,22.92464481,161.04,161.03,22.23174939]
[1746741596772,22.92464481,161.04,161.02,22.23174939]
[1746741597876,29.13428216,161.04,161.02,22.23174939]
[1746741598779,29.13428216,161.04,161.03,22.23174939]
[1746741599075,22.92464481,161.04,161.03,22.23174939]
[1746741600283,181.35174939,161.1,161.03,22.23174939]
[1746741600581,28.88770997,161.09,161.05,22.23174939]
[1746741600788,6.20770997,161.09,161.05,22.23174939]
[1746741601079,6.20770997,161.09,161.06,22.23174939]
[1746741601684,6.20770997,161.09,161.02,26.0]
[1746741601685,22.23174939,161.07,161.02,22.23174939]
[1746741602164,21.73103191,161.06,161.02,22.23174939]
[1746741603671,6.20886626,161.06,161.03,22.23174939]
[1746741603989,6.20770997,161.09,161.05,35.54130032]
[1746741604172,21.7269849,161.09,161.05,35.54130032]
[1746741604373,21.7269849,161.09,161.01,26.0]
[1746741604697,21.7269849,161.09,161.05,35.54130032]
[1746741604698,47.7269849,161.09,161.05,35.54130032]
[1746741604896,26.0,161.05,160.97,1.5545]
[1746741605195,26.0,161.05,160.99,35.54130032]
[1746741605492,61.54130032,161.05,161.0,35.54130032]
[1746741605784,26.0,161.05,161.0,35.54130032]
[1746741606179,21.73373074,161.04,161.0,35.54130032]
[1746741606366,6.20963735,161.04,161.01,35.54130032]
[1746741606566,6.20963735,161.04,161.02,35.54130032]
[1746741606767,6.20963735,161.04,161.01,35.54130032]
[1746741606968,6.20963735,161.04,160.99,26.0]
[1746741607297,57.27503106,161.04,160.98,35.54130032]
[1746741607466,35.54130032,161.03,160.98,35.54130032]
[1746741607665,21.73373074,161.04,160.97,1.5545]
[1746741607861,35.54130032,161.03,160.98,35.54130032]
[1746741608065,35.54130032,161.03,160.97,1.5545]
[1746741608366,57.27773057,161.02,160.97,37.09580032]
[1746741608567,21.73643025,161.02,160.98,35.54130032]
[1746741609662,6.21040864,161.02,160.99,35.54130032]
[1746741610275,22.72,161.03,161.01,35.54130032]
[1746741610479,22.72,161.03,161.02,35.54130032]
[1746741611183,6.20770997,161.09,161.02,35.54130032]
[1746741611383,28.76770997,161.09,161.05,35.54130032]
[1746741612168,21.7269849,161.09,161.01,26.0]
[1746741612374,21.7269849,161.09,161.04,35.54130032]
[1746741612594,21.7269849,161.09,161.05,35.54130032]
[1746741612790,21.7269849,161.09,161.05,32.82204366]
[1746741615705,21.7269849,161.09,161.01,26.0]
[1746741615913,21.7269849,161.09,161.05,35.54130032]
[1746741616079,35.54130032,161.08,161.03,35.54130032]
[1746741616275,35.54130032,161.07,161.02,35.54130032]
[1746741617213,54.19094918,161.05,160.97,1.5545]
[1746741617415,35.54130032,161.03,160.97,37.09580032]
[1746741617621,35.54130032,161.01,160.97,1.5545]
[1746741617818,35.54130032,161.0,160.95,35.54130032]
[1746741618190,21.74048076,160.99,160.95,35.54130032]
[1746741618515,21.74048076,160.99,160.93,1.6269]
[1746741618731,35.54130032,160.97,160.93,1.6269]
[1746741619018,58.04130032,160.96,160.9,35.54130032]
[1746741619189,35.54130032,160.95,160.9,35.54130032]
[1746741619608,58.04130032,160.96,160.9,35.54130032]
[1746741620003,35.54130032,160.94,160.89,1.5953]
[1746741620321,21.74993784,160.92,160.87,35.54130032]
[1746741620511,57.29123816,160.92,160.87,35.54130032]
[1746741621208,57.29123816,160.92,160.86,35.54130032]
[1746741621623,35.54130032,160.9,160.85,1.5401]
[1746741621919,22.48,160.89,160.85,1.5401]
[1746741622405,6.21581302,160.88,160.84,35.54130032]
[1746741622597,21.75534559,160.88,160.81,1.5395]
[1746741622802,21.75534559,160.88,160.83,35.54130032]
[1746741622991,21.75534559,160.88,160.84,35.54130032]
[1746741623400,35.54130032,160.87,160.77,6.61377579]
[1746741623591,35.54130032,160.87,160.82,35.54130032]
[1746741623802,6.21581302,160.88,160.83,35.54130032]
[1746741623997,6.21581302,160.88,160.84,35.54130032]
[1746741624210,21.75534559,160.88,160.84,35.54130032]
[1746741625105,6.21581302,160.88,160.85,35.54130032]
[1746741625307,6.21581302,160.88,160.87,35.54130032]
[1746741625506,6.21549014,160.89,160.87,35.54130032]
[1746741625709,22.72,160.9,160.88,35.54130032]
[1746741626018,22.72,160.9,160.89,35.54130032]
[1746741626409,6.21388181,160.93,160.89,35.54130032]
[1746741626714,28.65353011,160.94,160.92,35.54130032]
[1746741626925,28.65353011,160.94,160.91,35.54130032]
[1746741627124,44.18726939,160.94,160.88,26.0]
[1746741627328,44.18726939,160.94,160.91,35.54130032]
[1746741628007,44.18726939,160.94,160.9,35.54130032]
[1746741628598,44.18726939,160.94,160.91,35.54130032]
[1746741629607,44.18726939,160.94,160.9,35.54130032]
[1746741630507,44.18726939,160.94,160.91,35.54130032]
[1746741630707,44.18726939,160.94,160.9,35.54130032]
[1746741631106,44.18726939,160.94,160.91,35.54130032]
[1746741631413,21.74726939,160.94,160.92,35.54130032]
[1746741631625,6.21353011,160.94,160.92,35.54130032]
[1746741631922,6.21353011,160.94,160.88,35.54130032]
[1746741631923,21.74386653,160.97,160.93,35.54130032]
[1746741632223,6.2123377,160.97,160.95,35.54130032]
[1746741632920,6.2123377,160.97,160.96,35.54130032]
[1746741635532,6.2123377,160.97,160.94,1.6045]
[1746741635702,21.74318195,160.97,160.91,108.3]
[1746741635908,21.74318195,160.97,160.93,35.54130032]
[1746741636428,21.74318195,160.97,160.91,108.3]
[1746741636599,21.74318195,160.97,160.93,35.54130032]
[1746741637325,21.74318195,160.97,160.91,108.3]
[1746741637326,57.28448227,160.97,160.92,35.54130032]
[1746741638125,54.19094918,160.96,160.9,1.5097]
[1746741638324,18.64964886,160.96,160.9,1.5097]
[1746741638506,35.54130032,160.94,160.88,35.54130032]
[1746741638704,18.64964886,160.96,160.88,35.54130032]
[1746741638705,79.62988665,160.93,160.88,35.54130032]
[1746741639003,79.62988665,160.93,160.87,35.54130032]
[1746741639326,44.08858633,160.93,160.87,35.54130032]
[1746741639513,79.62988665,160.93,160.88,35.54130032]
[1746741639713,79.62988665,160.93,160.86,1.6575]
[1746741639912,79.62988665,160.93,160.91,35.54130032]
[1746741639913,6.21388181,160.93,160.91,35.54130032]
[1746741640115,6.21388181,160.93,160.92,35.54130032]
[1746741640813,6.21349571,160.94,160.92,35.54130032]
[1746741641126,28.53195179,160.98,160.93,35.54130032]
[1746741641341,28.53195179,160.98,160.95,35.54130032]
[1746741641517,6.21118012,161.0,160.97,35.54130032]
[1746741642327,6.21118012,161.0,160.98,35.54130032]
[1746741642629,6.21118012,161.0,160.99,35.54130032]
[1746741642804,6.21118012,161.0,160.98,35.54130032]
[1746741643001,6.21118012,161.0,160.99,35.54130032]
[1746741644110,6.21041025,161.02,161.0,1.6292]
[1746741644324,6.21041025,161.02,161.01,35.54130032]
[1746741644629,6.20963735,161.04,161.01,34.54130032]
[1746741645122,6.20963735,161.04,161.02,35.54130032]
[1746741645322,30.0,161.03,161.02,35.54130032]
[1746741645823,30.0,161.03,161.01,35.54130032]
[1746741646722,6.21040864,161.02,161.0,37.17050032]
[1746741647626,6.21040864,161.02,161.0,1.6292]
[1746741647811,6.21040864,161.02,161.0,37.17050032]
[1746741648917,21.73643025,161.02,160.98,35.54130032]
[1746741650535,6.21118012,161.0,160.98,35.54130032]
[1746741650734,36.2109077,161.01,160.99,35.54130032]
[1746741651031,36.2109077,161.01,160.96,1.502]
[1746741651213,36.2109077,161.01,160.99,35.54130032]
[1746741651623,36.2109077,161.01,161.0,35.54130032]
[1746741652129,6.2109077,161.01,161.0,35.54130032]
[1746741652637,15.52566064,161.03,161.0,35.54130032]
[1746741652814,6.20963735,161.04,161.01,35.54130032]
[1746741653009,30.0,161.02,161.01,35.54130032]
[1746741654734,36.21040864,161.02,161.01,35.54130032]
[1746741657232,36.21040864,161.02,160.99,35.54130032]
[1746741657537,51.73643025,161.02,160.99,35.54130032]
[1746741657737,51.73643025,161.02,160.98,35.54130032]
[1746741657917,87.27773057,161.02,160.97,35.54130032]
[1746741658115,35.54130032,160.99,160.92,7.6774]
[1746741658313,35.54130032,160.98,160.93,35.54130032]
[1746741658533,35.54130032,160.98,160.92,7.6774]
[1746741658534,35.54130032,160.97,160.92,37.08050032]
[1746741659612,21.74453279,160.96,160.92,37.08050032]
[1746741660033,35.54130032,160.94,160.88,1.5392]
[1746741660340,35.54130032,160.92,160.87,35.54130032]
[1746741660634,57.68130032,160.91,160.86,35.54130032]
[1746741661740,6.21504039,160.9,160.87,35.54130032]
[1746741662040,6.21504039,160.9,160.86,35.54130032]
[1746741662041,21.75264138,160.9,160.86,35.54130032]
[1746741663341,57.2939417,160.9,160.85,35.54130032]
[1746741664439,57.2939417,160.9,160.84,1.5392]
[1746741664643,57.2939417,160.9,160.85,35.54130032]
[1746741665343,21.75264138,160.9,160.86,35.54130032]
[1746741665523,21.75264138,160.9,160.87,35.54130032]
[1746741665729,6.21504039,160.9,160.88,35.54130032]
[1746741665920,6.21504039,160.9,160.89,35.54130032]
[1746741666240,22.1,160.93,160.89,35.54130032]
[1746741666417,28.31388181,160.93,160.92,35.54130032]
[1746741666742,28.31388181,160.93,160.86,26.0]
[1746741666940,28.31388181,160.93,160.91,35.54130032]
[1746741667252,43.84858633,160.93,160.91,35.54130032]
[1746741668050,79.38988665,160.93,160.84,83.8392]
[1746741668247,35.54130032,160.92,160.87,35.54130032]
[1746741668547,79.38988665,160.93,160.88,35.54130032]
[1746741668751,79.38988665,160.93,160.84,27.5392]
[1746741669043,35.54130032,160.92,160.87,35.54130032]
[1746741669532,54.19094918,160.91,160.86,35.54130032]
[1746741669842,18.64964886,160.89,160.84,1.5392]
[1746741670136,54.19094918,160.89,160.84,35.54130032]
[1746741670347,35.54130032,160.88,160.83,35.54130032]
[1746741670525,35.54130032,160.87,160.8,8.0643]
[1746741670726,22.06,160.86,160.8,8.0643]
[1746741670925,22.06,160.86,160.82,35.54130032]
[1746741671247,22.06,160.86,160.83,35.54130032]
[1746741671744,22.06,160.86,160.84,35.54130032]
[1746741671948,6.21697233,160.85,160.84,35.54130032]
[1746741672333,6.21697233,160.85,160.8,43.60560032]
[1746741672522,6.21697233,160.85,160.84,35.54130032]
[1746741672936,6.21697233,160.85,160.8,8.0643]
[1746741673227,6.21697233,160.85,160.83,35.54130032]
[1746741673641,6.21697233,160.85,160.8,8.0643]
[1746741673843,21.75940316,160.85,160.82,35.54130032]
[1746741674156,6.21697233,160.85,160.83,35.54130032]
[1746741674654,21.75940316,160.85,160.82,35.54130032]
[1746741675823,0.13474006,160.83,160.82,35.54130032]
[1746741676036,6.3524855,160.83,160.8,1.5019]
[1746741676227,6.3524855,160.83,160.82,35.54130032]
[1746741678352,6.3524855,160.83,160.8,1.5019]
[1746741678539,6.3524855,160.83,160.82,35.54130032]
[1746741678725,0.13474006,160.83,160.82,35.54130032]
[1746741679133,6.3524855,160.83,160.82,35.54130032]
[1746741679346,0.13474006,160.83,160.82,35.54130032]
[1746741679732,0.13474006,160.83,160.8,27.5019]
[1746741679960,6.3524855,160.83,160.82,35.54130032]
[1746741680133,0.13474006,160.83,160.82,35.54130032]
[1746741680751,0.13474006,160.83,160.8,63.04320032]
[1746741680950,0.13474006,160.83,160.82,35.54130032]
[1746741682258,6.3524855,160.83,160.82,35.54130032]
[1746741682750,0.13474006,160.83,160.82,35.54130032]
[1746741684652,0.13527634,160.84,160.82,67.75943239]
[1746741684856,0.13527634,160.84,160.83,41.70670032]
[1746741685156,0.1273073,160.85,160.83,124.00670032]
[1746741685343,0.1273073,160.85,160.84,61.54130032]
[1746741688555,0.1273073,160.85,160.84,35.54130032]
[1746741692038,0.1273073,160.85,160.83,6.1654]
[1746741692354,0.1273073,160.85,160.84,35.54130032]
[1746741693066,6.34427963,160.85,160.8,119.34320032]
[1746741693267,6.34427963,160.85,160.83,35.54130032]
[1746741693855,6.34427963,160.85,160.84,35.54130032]
[1746741695859,6.46203017,160.85,160.84,35.54130032]
[1746741696248,6.46203017,160.85,160.8,63.04320032]
[1746741696249,6.46203017,160.85,160.8,27.5019]
[1746741696562,6.46203017,160.85,160.84,35.54130032]
[1746741696768,6.46203017,160.85,160.8,63.04320032]
[1746741696942,6.46203017,160.85,160.83,35.54130032]
[1746741697137,6.33472287,160.85,160.83,35.54130032]
[1746741697734,6.33472287,160.85,160.8,27.5019]
[1746741697969,21.8771537,160.85,160.83,35.54130032]
[1746741698350,21.8771537,160.85,160.8,27.5019]
[1746741698351,0.11775054,160.85,160.84,35.54130032]
[1746741699460,6.33472287,160.85,160.84,35.54130032]
[1746741699647,0.11775054,160.85,160.84,35.54130032]
[1746741700872,6.33472287,160.85,160.84,35.54130032]
[1746741701268,0.11775054,160.85,160.84,35.54130032]
[1746741702344,0.1355178,160.86,160.84,41.75865918]
[1746741702551,0.1355178,160.86,160.85,35.54130032]
[1746741706072,6.35221712,160.86,160.85,35.54130032]
[1746741706242,0.1355178,160.86,160.85,35.54130032]
[1746741706448,6.35210365,160.86,160.85,35.54130032]
[1746741709176,6.35210365,160.86,160.8,37.04320032]
[1746741709478,6.35210365,160.86,160.84,35.54130032]
[1746741710249,21.89356827,160.86,160.83,35.54130032]
[1746741710656,21.89356827,160.86,160.84,35.54130032]
[1746741711675,6.35210365,160.86,160.84,35.54130032]
[1746741712074,6.35210365,160.86,160.85,35.54130032]
[1746741713263,6.35210365,160.86,160.84,35.54130032]
[1746741715576,6.35210365,160.86,160.78,26.0]
[1746741715577,21.89356827,160.86,160.78,26.0]
[1746741715777,0.12420458,160.85,160.78,26.0]
[1746741715983,21.82420458,160.85,160.83,35.54130032]
[1746741716283,21.82420458,160.85,160.82,35.54130032]
[1746741716572,21.82420458,160.85,160.81,35.54130032]
[1746741716780,21.82420458,160.85,160.77,1.5906]
[1746741717083,21.82420458,160.85,160.81,35.54130032]
[1746741717259,21.76075602,160.84,160.81,35.54130032]
[1746741717756,88.38885066,160.84,160.79,35.54130032]
[1746741718155,110.08885066,160.84,160.79,35.54130032]
[1746741718355,35.54130032,160.83,160.78,35.54130032]
[1746741718779,35.54130032,160.83,160.77,35.54130032]
[1746741718982,35.54130032,160.83,160.78,35.54130032]
[1746741719157,93.1971992,160.84,160.79,35.54130032]
[1746741719158,21.76346225,160.82,160.79,35.54130032]
[1746741719484,21.76346225,160.82,160.78,35.54130032]
[1746741720584,21.76346225,160.82,160.73,35.54130032]
[1746741720585,35.54130032,160.79,160.73,35.54130032]
[1746741720776,21.68,160.78,160.73,35.54130032]
[1746741721159,21.68,160.78,160.7,26.0]
[1746741721160,21.68,160.78,160.77,35.54130032]
[1746741721582,43.44887672,160.78,160.72,35.54130032]
[1746741721772,43.44887672,160.78,160.75,35.54130032]
[1746741721968,43.44887672,160.78,160.74,35.54130032]
[1746741722180,54.19094918,160.77,160.66,7.9834]
[1746741722380,21.7,160.76,160.71,35.54130032]
[1746741722689,21.7,160.76,160.69,26.0]
[1746741722894,21.7,160.76,160.71,35.54130032]
[1746741723101,54.19094918,160.75,160.66,7.9834]
[1746741723268,6.22122682,160.74,160.71,35.54130032]
[1746741723470,21.77429388,160.74,160.7,35.54130032]
[1746741723685,6.22122682,160.74,160.72,35.54130032]
[1746741723995,6.22122682,160.74,160.73,35.54130032]
[1746741724690,27.92047812,160.76,160.73,35.54130032]
[1746741724905,27.92047812,160.76,160.74,35.54130032]
[1746741725194,6.21975457,160.78,160.75,35.54130032]
[1746741725401,6.21975457,160.78,160.77,35.54130032]
[1746741725774,6.21975457,160.78,160.73,1.6013]
[1746741725775,21.76895223,160.78,160.73,1.6013]
[1746741725975,6.21975457,160.78,160.76,35.54130032]
[1746741726186,6.21975457,160.78,160.71,6.22238815]
[1746741726484,6.21975457,160.78,160.76,35.54130032]